{"text_format":"1","workbook":"xlsx","n_sheets":6,"sheets":["表紙","自己採点シート","学習自己点検シート ","単位修得状況確認表（共通教育科目，一般学生）","単位修得状況確認表（専門教育科目）","累積グラフ"],"not_rendered":{"charts":8,"images":3,"macros":1,"external_links":0,"defined_names":15,"comments":0,"pivot_tables":0},"unopened":[],"bounds":{"document_bytes":16777216,"sheet_cells":100000,"rows_first":2000,"rows_last":500,"rows_between":2000,"halvings":0,"cell_chars":16384,"cell_head_chars":4096},"cells_cut":0,"cells_raw":0,"read":"whole","date_system":"1900"}

{"sheet":"表紙","index":0,"n_rows":33,"n_cols":2,"rows_kept":33,"cut":false,"hidden":false,"merged":[]}
[]
[]
[]
[]
[]
[]
[]
[]
[]
[]
[]
[null,"鹿児島大学工学部ポートフォリオ"]
[]
[]
[]
[]
[]
[]
[]
[]
[]
[]
[]
[]
[]
[]
[]
[]
[]
[null,"入学年度：平成31年度"]
[null,"学科：機械工学科"]
[null,"氏名："]
[null,"学籍番号："]

{"sheet":"自己採点シート","index":1,"n_rows":22,"n_cols":21,"rows_kept":22,"cut":false,"hidden":false,"merged":[[12,2,12,5],[3,10,3,11],[3,19,3,20],[9,2,9,5],[10,2,10,5],[11,2,11,5],[19,2,19,5],[20,2,20,5],[21,2,21,5],[13,2,13,5],[14,2,14,5],[15,2,15,5],[16,2,16,5],[17,2,17,5],[18,2,18,5]]}
[]
[null,"自己採点シート"]
[]
[null,null,null,null,null,null,null,null,null,"学籍番号",null,null,"氏名"]
[]
[null,"■学生のみなさんへ"]
[null,null,"今期受講した科目に関して、以下の項目に対して自己採点をしてください。(１０点満点)"]
[]
[]
[null,null,"項目",null,null,null,"2019年度\n前期","2019年度\n後期","2020年度\n前期","2020年度\n後期","2021年度\n前期","2021年度\n後期","2022年度\n前期","2022年度\n後期","2023年度\n前期","2023年度\n後期","2024年度\n前期","2024年度\n後期","2025年度\n前期","2025年度\n後期","卒業時"]
[null,1,"工学に関しての基礎知識\n（物理・化学・数学・情報など）"]
[null,2,"各工学分野での基礎知識\n（専門科目など）"]
[null,3,"人前での発表能力"]
[null,4,"人と話し合ったり議論する能力"]
[null,5,"チームの一員として取り組める（チームワーク）能力"]
[null,6,"英語、その他外国語による表現力"]
[null,7,"読書、講習会への参加、英会話や情報処理学習など大学以外での学習による自己啓発・生涯学習能力"]
[null,8,"社会性や国際感覚が身についているか。"]
[null,9,"倫理観、責任感が身についているか。"]
[null,10]
[null,11]
[null,12]

{"sheet":"学習自己点検シート ","index":2,"n_rows":68,"n_cols":13,"rows_kept":68,"cut":false,"hidden":false,"merged":[[4,8,4,9],[4,11,4,12],[7,2,7,12]]}
[]
[null,null,null,null,null,null,null,null,null,null,null,"年度","期"]
[null,"学習自己点検シート"]
[]
[null,null,null,null,null,null,null,"学籍番号",null,null,"氏名"]
[]
[null,"■学生のみなさんへ"]
[null,null,"学生生活全般に関して自己点検をお願いしています。今期受講した科目に関して、以下の質問項目に答えてください。面談時、指導教員（アドバイザー）の先生方から回答に対する具体的なアドバイスを受けてください。"]
[]
[]
[null,"■回答項目"]
[]
[null,1,"今期の目標は達成できましたか。"]
[]
[]
[]
[]
[null,2,"講義への取り組みは積極的でしたか。また、積極的に取り組むことができなかった講義は具体的に何ですか。"]
[]
[]
[]
[]
[null,3,"講義毎に勉強方法がつかめていますか。"]
[]
[]
[]
[]
[null,4,"それぞれの講義の理解度は自分の目標に達していますか。理解度が足りないと感じている講義は何ですか。"]
[]
[]
[]
[]
[null,5,"平日（試験勉強以外）１日当たりの勉強時間（平均）はどのくらいですか。勉強時間が足りないと感じている講義は何ですか。"]
[]
[]
[]
[]
[null,6,"アルバイトと勉強は両立できましたか。"]
[]
[]
[]
[]
[null,7,"サークル活動と勉強は両立できましたか。"]
[]
[]
[]
[]
[null,8,"卒業後の進路についてどのように考えていますか。"]
[]
[]
[]
[]
[null,9,"その他、アドバイスが必要なことはありますか。"]
[]
[]
[]
[]
[null,10]
[]
[]
[]
[]
[null,11]
[]
[]
[]
[]
[null,12]

{"sheet":"単位修得状況確認表（共通教育科目，一般学生）","index":3,"n_rows":38,"n_cols":49,"rows_kept":38,"cut":false,"hidden":false,"merged":[[27,23,27,24],[27,35,27,36],[27,37,27,38],[27,25,27,26],[27,27,27,28],[27,29,27,30],[27,31,27,32],[27,33,27,34],[26,35,26,36],[26,37,26,38],[25,35,25,36],[25,37,25,38],[27,0,27,6],[27,7,27,8],[27,9,27,10],[27,11,27,12],[27,13,27,14],[26,27,26,28],[26,29,26,30],[26,31,26,32],[27,15,27,16],[27,17,27,18],[27,19,27,20],[27,21,27,22],[3,35,3,38],[4,35,4,36],[4,37,4,38],[24,39,24,40],[4,33,4,34],[19,40,20,40],[26,13,26,14],[26,15,26,16],[26,17,26,18],[26,19,26,20],[3,31,3,34],[4,31,4,32],[25,31,25,32],[25,33,25,34],[26,33,26,34],[26,21,26,22],[26,23,26,24],[26,25,26,26],[25,15,25,16],[25,17,25,18],[25,19,25,20],[25,21,25,22],[25,27,25,28],[25,29,25,30],[4,27,4,28],[4,29,4,30],[4,19,4,20],[4,21,4,22],[4,23,4,24],[4,25,4,26],[25,23,25,24],[25,25,25,26],[1,0,1,41],[2,0,5,6],[2,7,2,38],[2,39,5,39],[2,40,5,40],[2,41,5,41],[3,7,3,10],[3,11,3,14],[3,15,3,18],[3,19,3,22],[3,23,3,26],[3,27,3,30],[4,7,4,8],[4,9,4,10],[4,13,4,14],[4,15,4,16],[4,11,4,12],[4,17,4,18],[25,0,25,6],[25,7,25,8],[25,9,25,10],[25,11,25,12],[12,1,13,3],[23,1,23,10],[22,0,22,6],[15,0,21,0],[15,1,18,3],[16,4,18,4],[25,13,25,14],[26,11,26,12],[26,0,26,6],[26,7,26,8],[26,9,26,10],[6,0,14,0],[6,1,11,3],[9,4,10,4],[19,1,20,3]]}
[{"$f":"'単位修得状況確認表（共通教育科目，一般学生）'!H7:W14","v":{"$error":"#VALUE!"}},null,null,null,null,null,null,null,null,null,null,null,null,null,null,null,null,null,null,null,null,null,null,null,null,null,null,null,null,null,null,null,null,null,null,null,null,null,null,null,null,null,null,null,null,null,null,null,"A"]
["単位修得状況確認表（共通教育科目：一般学生）",null,null,null,null,null,null,null,null,null,null,null,null,null,null,null,null,null,null,null,null,null,null,null,null,null,null,null,null,null,null,null,null,null,null,null,null,null,null,null,null,null,null,null,null,null,null,null,"B"]
["　",null,null,null,null,null,null,"取得単位数およびGP",null,null,null,null,null,null,null,null,null,null,null,null,null,null,null,null,null,null,null,null,null,null,null,null,null,null,null,null,null,null,null,"取得単位数","要修得\n単位数","累積GP",null,null,"当該期修得単位の入力要領（共通教育科目）",null,null,null,"C"]
[null,null,null,null,null,null,null,"　年次",null,null,null,"　年次",null,null,null,"　年次",null,null,null,"　年次",null,null,null,"　年次",null,null,null,"　年次",null,null,null,"　年次",null,null,null,"　年次",null,null,null,null,null,null,null,null,"１．黄色枠に各科目(英語の場合は修得した合計",null,null,null,"D"]
[null,null,null,null,null,null,null,"１期",null,"２期",null,"３期",null,"４期",null,"５期",null,"６期",null,"７期",null,"８期",null,"９期",null,"10期",null,"11期",null,"12期",null,"13期",null,"14期",null,"15期",null,"16期",null,null,null,null,null,null,"　　単位数)の修得単位数を記入する。",null,null,null,"F"]
[null,null,null,null,null,null,null,"単位","合計GP","単位","合計GP","単位","合計GP","単位","合計GP","単位","合計GP","単位","合計GP","単位","合計GP","単位","合計GP","単位","合計GP","単位","合計GP","単位","合計GP","単位","合計GP","単位","合計GP","単位","合計GP","単位","合計GP","単位","合計GP",null,null,null,null,null,"２．オレンジ枠に修得した必修科目・選択必修",null,null,null,"P"]
["必修科目","初年次教育科目",null,null,"初年次セミナーⅠ",null,null,null,null,null,null,null,null,null,null,null,null,null,null,null,null,null,null,null,null,null,null,null,null,null,null,null,null,null,null,null,null,null,null,{"$f":"SUM(H7,J7,L7,N7,P7,R7,T7,V7,X7,Z7,AB7,AD7,AF7,AH7,AJ7,AL7)","v":0},2,null,null,null,"　　科目それぞれの合計単位数を記入する。"]
[null,null,null,null,"初年次セミナーⅡ",null,null,null,null,null,null,null,null,null,null,null,null,null,null,null,null,null,null,null,null,null,null,null,null,null,null,null,null,null,null,null,null,null,null,{"$f":"SUM(H8,J8,L8,N8,P8,R8,T8,V8,X8,Z8,AB8,AD8,AF8,AH8,AJ8,AL8)","v":0},2,null,null,null,"３．灰色枠に受講科目の合計GP（単位数×GP）"]
[null,null,null,null,"大学と地域",null,null,null,null,null,null,null,null,null,null,null,null,null,null,null,null,null,null,null,null,null,null,null,null,null,null,null,null,null,null,null,null,null,null,0,2,null,null,null,"　　を計算し、その値を入力する。"]
[null,null,null,null,"体育・健康","理論",null,null,null,null,null,null,null,null,null,null,null,null,null,null,null,null,null,null,null,null,null,null,null,null,null,null,null,null,null,null,null,null,null,0,1,null,null,null,"　（評価とGPの関係：A=4,B=3,C=2,D=1,F=0,Pは"]
[null,null,null,null,null,"実習",null,null,null,null,null,null,null,null,null,null,null,null,null,null,null,null,null,null,null,null,null,null,null,null,null,null,null,null,null,null,null,null,null,0,1,null,null,null,"　　GPの該当外なので合計GP欄は空欄とする。）"]
[null,null,null,null,"情報活用",null,null,null,null,null,null,null,null,null,null,null,null,null,null,null,null,null,null,null,null,null,null,null,null,null,null,null,null,null,null,null,null,null,null,0,2,null,null,null,"４．取得単位数を要修得単位数と比較して、"]
[null,"ｸﾞﾛｰﾊﾞﾙ教育科目",null,null,"英語",null,null,null,null,null,null,null,null,null,null,null,null,null,null,null,null,null,null,null,null,null,null,null,null,null,null,null,null,null,null,null,null,null,null,0,6,null,null,null,"　　単位取得状況を把握する。"]
[null,null,null,null,"異文化理解",null,null,null,null,null,null,null,null,null,null,null,null,null,null,null,null,null,null,null,null,null,null,null,null,null,null,null,null,null,null,null,null,null,null,{"$f":"SUM(H14,J14,L14,N14,P14,R14,T14,V14,X14,Z14,AB14,AD14,AF14,AH14,AJ14,AL14)","v":0},2]
[null,"必修科目　計",null,null,null,null,null,null,{"$f":"SUM(I7:I14)","v":0},null,{"$f":"SUM(K7:K14)","v":0},null,{"$f":"SUM(M7:M14)","v":0},null,{"$f":"SUM(O7:O14)","v":0},null,{"$f":"SUM(Q7:Q14)","v":0},null,{"$f":"SUM(S7:S14)","v":0},null,{"$f":"SUM(U7:U14)","v":0},null,{"$f":"SUM(W7:W14)","v":0},null,{"$f":"SUM(Y7:Y14)","v":0},null,{"$f":"SUM(AA7:AA14)","v":0},null,{"$f":"SUM(AC7:AC14)","v":0},null,{"$f":"SUM(AE7:AE14)","v":0},null,{"$f":"SUM(AG7:AG14)","v":0},null,{"$f":"SUM(AI7:AI14)","v":0},null,{"$f":"SUM(AK7:AK14)","v":0},null,{"$f":"SUM(AM7:AM14)","v":0},{"$f":"SUM(H15,J15,L15,N15,P15,R15,T15,V15,X15,Z15,AB15,AD15,AF15,AH15,AJ15,AL15)","v":0},18,{"$f":"SUM(I15,K15,M15,O15,Q15,S15,U15,W15,Y15,AA15,AC15,AE15,AG15,AI15,AK15,AM15)","v":0},null,null,"※期をまたがって開講される科目は、成績の出"]
["選択必修科目","教養教育科目",null,null,"人文・社会科学分野","選択科目",null,null,null,null,null,null,null,null,null,null,null,null,null,null,null,null,null,null,null,null,null,null,null,null,null,null,null,null,null,null,null,null,null,0,4,null,null,null,"　された期に記入する。例えば通年の場合、後"]
[null,null,null,null,"自然科学分野","実験科目",null,null,null,null,null,null,null,null,null,null,null,null,null,null,null,null,null,null,null,null,null,null,null,null,null,null,null,null,null,null,null,null,null,0,1,null,null,null,"　期に記入する。"]
[null,null,null,null,null,"選択科目",null,null,null,null,null,null,null,null,null,null,null,null,null,null,null,null,null,null,null,null,null,null,null,null,null,null,null,null,null,null,null,null,null,0,2,null,null,null,"※本表最下部の表の入力方法について"]
[null,null,null,null,null,"基礎教育入門科目",null,null,null,null,null,null,null,null,null,null,null,null,null,null,null,null,null,null,null,null,null,null,null,null,null,null,null,null,null,null,null,null,null,0,2,null,null,null,"　・P評価の単位数は、当該期①の欄に、"]
[null,"教養活用科目",null,null,"統合Ⅰ（課題発見）",null,null,null,null,null,null,null,null,null,null,null,null,null,null,null,null,null,null,null,null,null,null,null,null,null,null,null,null,null,null,null,null,null,null,0,4,null,null,null,"　・F評価の単位数は、当該期②の欄に、"]
[null,null,null,null,"統合Ⅱ（課題解決）",null,null,null,null,null,null,null,null,null,null,null,null,null,null,null,null,null,null,null,null,null,null,null,null,null,null,null,null,null,null,null,null,null,null,0,null,null,null,null,"　・評価F科目の再履修での修得単位数は当該"]
[null,"選択必修科目　計",null,null,null,null,null,null,{"$f":"SUM(I16:I21)","v":0},null,{"$f":"SUM(K16:K21)","v":0},null,{"$f":"SUM(M16:M21)","v":0},null,{"$f":"SUM(O16:O21)","v":0},null,{"$f":"SUM(Q16:Q21)","v":0},null,{"$f":"SUM(S16:S21)","v":0},null,{"$f":"SUM(U16:U21)","v":0},null,{"$f":"SUM(W16:W21)","v":0},null,{"$f":"SUM(Y16:Y21)","v":0},null,{"$f":"SUM(AA16:AA21)","v":0},null,{"$f":"SUM(AC16:AC21)","v":0},null,{"$f":"SUM(AE16:AE21)","v":0},null,{"$f":"SUM(AG16:AG21)","v":0},null,{"$f":"SUM(AI16:AI21)","v":0},null,{"$f":"SUM(AK16:AK21)","v":0},null,{"$f":"SUM(AM16:AM21)","v":0},{"$f":"SUM(H22,J22,L22,N22,P22,R22,T22,V22,X22,Z22,AB22,AD22,AF22,AH22,AJ22,AL22)","v":0},13,{"$f":"SUM(I22,K22,M22,O22,Q22,S22,U22,W22,Y22,AA22,AC22,AE22,AG22,AI22,AK22,AM22)","v":0},null,null,"　　期③の欄に入力する。なお、②には再履修"]
["全科目合計",null,null,null,null,null,null,{"$f":"H15+H22","v":0},{"$f":"I15+I22","v":0},0,0,0,0,0,0,0,0,0,0,0,0,0,0,0,0,0,0,0,0,0,0,0,0,0,0,0,0,0,0,{"$f":"SUM(H23,J23,L23,N23,P23,R23,T23,V23,X23,Z23,AB23,AD23,AF23,AH23,AJ23,AL23)","v":0},31,{"$f":"SUM(I23,K23,M23,O23,Q23,S23,U23,W23,Y23,AA23,AC23,AE23,AG23,AI23,AK23,AM23)","v":0},null,null,"　　の科目は含まない。"]
["※","「期を増やす」欄により学年を４年間増やすことが可。"]
[null,null,null,null,null,null,null,null,null,null,null,null,null,null,null,null,null,null,null,null,null,null,null,null,null,null,null,null,null,null,null,null,null,null,null,null,null,null,null,null,null,null,null,null,"※評価Fの科目を再履修して単位を修得した場合"]
["①【共通教育科目】評価Pの単位数",null,null,null,null,null,null,null,null,null,null,null,null,null,null,null,null,null,null,null,null,null,null,null,null,null,null,null,null,null,null,null,null,null,null,null,null,null,null,{"$f":"SUM(H26:AM26)","v":0},null,null,null,null,"　の入力方法について"]
["②【共通教育科目】不合格（評価F）の単位数",null,null,null,null,null,null,null,null,null,null,null,null,null,null,null,null,null,null,null,null,null,null,null,null,null,null,null,null,null,null,null,null,null,null,null,null,null,null,{"$f":"SUM(H27:AM27)","v":0},null,null,null,null,"　上記1～3の手順で入力する。"]
["③【共通教育科目】評価F科目の再履修での修得単位数",null,null,null,null,null,null,null,null,null,null,null,null,null,null,null,null,null,null,null,null,null,null,null,null,null,null,null,null,null,null,null,null,null,null,null,null,null,null,{"$f":"SUM(H28:AM28)","v":0},null,null,null,null,"※既修得単位（D以上）の科目を再履修して単位を"]
[null,null,null,null,null,null,null,null,null,null,null,null,null,null,null,null,null,null,null,null,null,null,null,null,null,null,null,null,null,null,null,null,null,null,null,null,null,null,null,null,null,null,null,null,"　修得した場合の入力方法について"]
[null,null,null,null,null,null,null,null,null,null,null,null,null,null,null,null,null,null,null,null,null,null,null,null,null,null,null,null,null,null,null,null,null,null,null,null,null,null,null,null,null,null,null,null,"　今期の分を上記1～3の手順で入力した後、"]
[null,null,null,null,null,null,null,null,null,null,null,null,null,null,null,null,null,null,null,null,null,null,null,null,null,null,null,null,null,null,null,null,null,null,null,null,null,null,null,null,null,null,null,null,"  過去の評価（黄色枠）と合計GP（灰色枠）"]
[null,null,null,null,null,null,null,null,null,null,null,null,null,null,null,null,null,null,null,null,null,null,null,null,null,null,null,null,null,null,null,null,null,null,null,null,null,null,null,null,null,null,null,null,"　を削除し、過去のオレンジ枠の合計修得単位数"]
[null,null,null,null,null,null,null,null,null,null,null,null,null,null,null,null,null,null,null,null,null,null,null,null,null,null,null,null,null,null,null,null,null,null,null,null,null,null,null,null,null,null,null,null,"　から今期再履修で修得した単位数を引いた値を"]
[null,null,null,null,null,null,null,null,null,null,null,null,null,null,null,null,null,null,null,null,null,null,null,null,null,null,null,null,null,null,null,null,null,null,null,null,null,null,null,null,null,null,null,null,"　過去のオレンジ枠の合計修得単位数に再入力する。"]
[null,null,null,null,null,null,null,null,null,null,null,null,null,null,null,null,null,null,null,null,null,null,null,null,null,null,null,null,null,null,null,null,null,null,null,null,null,null,null,null,null,null,null,null,"　"]
[null,null,null,null,null,null,null,null,null,null,null,null,null,null,null,null,null,null,null,null,null,null,null,null,null,null,null,null,null,null,null,null,null,null,null,null,null,null,null,null,null,null,null,null,"（補足説明）"]
[null,null,null,null,null,null,null,null,null,null,null,null,null,null,null,null,null,null,null,null,null,null,null,null,null,null,null,null,null,null,null,null,null,null,null,null,null,null,null,null,null,null,null,null,"※留年した場合は「期を増やす」欄で列を増"]
[null,null,null,null,null,null,null,null,null,null,null,null,null,null,null,null,null,null,null,null,null,null,null,null,null,null,null,null,null,null,null,null,null,null,null,null,null,null,null,null,null,null,null,null,"　やす。"]

{"sheet":"単位修得状況確認表（専門教育科目）","index":4,"n_rows":87,"n_cols":51,"rows_kept":87,"cut":false,"hidden":false,"merged":[[86,0,86,5],[86,6,86,7],[86,8,86,9],[86,10,86,11],[86,12,86,13],[73,43,75,43],[86,34,86,35],[86,36,86,37],[86,24,86,25],[86,26,86,27],[86,28,86,29],[86,30,86,31],[86,32,86,33],[84,36,84,37],[85,34,85,35],[85,36,85,37],[84,28,84,29],[84,30,84,31],[84,34,84,35],[84,26,84,27],[85,0,85,5],[84,0,84,5],[84,32,84,33],[84,12,84,13],[4,6,4,7],[4,26,4,27],[4,28,4,29],[4,24,4,25],[4,14,4,15],[4,16,4,17],[4,18,4,19],[86,14,86,15],[86,16,86,17],[86,18,86,19],[86,20,86,21],[86,22,86,23],[85,6,85,7],[85,8,85,9],[85,10,85,11],[85,12,85,13],[85,14,85,15],[84,6,84,7],[84,8,84,9],[84,10,84,11],[85,16,85,17],[85,18,85,19],[84,18,84,19],[84,20,84,21],[1,0,1,40],[2,38,5,38],[3,6,3,9],[3,10,3,13],[3,14,3,17],[4,8,4,9],[4,10,4,11],[4,12,4,13],[2,40,5,40],[3,18,3,21],[4,32,4,33],[3,30,3,33],[3,34,3,37],[4,22,4,23],[3,26,3,29],[2,0,2,1],[5,0,5,1],[2,39,5,39],[4,20,4,21],[3,22,3,25],[4,34,4,35],[2,6,2,37],[4,36,4,37],[4,30,4,31],[8,50,9,50],[40,50,41,50],[6,46,26,46],[29,46,63,46],[66,46,77,46],[82,38,82,39],[64,1,64,4],[29,0,64,0],[29,1,63,1],[6,0,12,0],[12,1,12,4],[14,0,27,0],[6,1,11,1],[27,1,27,4],[66,0,78,0],[78,1,78,4],[80,0,80,5],[81,0,81,5],[82,1,82,10],[84,14,84,15],[84,16,84,17],[85,22,85,23],[85,24,85,25],[85,26,85,27],[85,28,85,29],[85,30,85,31],[85,32,85,33],[84,22,84,23],[84,24,84,25],[85,20,85,21]]}
[null,null,null,null,null,null,null,null,null,null,null,null,null,null,null,null,null,null,null,null,null,null,null,null,null,null,null,null,null,null,null,null,null,null,null,null,null,null,null,null,null,null,null,null,null,null,null,"A"]
["単位修得状況確認表（専門教育科目）",null,null,null,null,null,null,null,null,null,null,null,null,null,null,null,null,null,null,null,null,null,null,null,null,null,null,null,null,null,null,null,null,null,null,null,null,null,null,null,null,null,null,"受講科目の単位入力要領（専門教育科目）",null,null,null,"B"]
["区",null,"工","専","授","単","履修科目の評価およびGP",null,null,null,null,null,null,null,null,null,null,null,null,null,null,null,null,null,null,null,null,null,null,null,null,null,null,null,null,null,null,null,"取得単位数","要修得\n単位数","累積GP",null,null,"STEP１",null,null,null,"C"]
[null," ","学"," ","業"," ","　年次",null,null,null,"　年次",null,null,null,"　年次",null,null,null,"　年次",null,null,null,"　年次",null,null,null,"　年次",null,null,null,"　年次",null,null,null,"　年次",null,null,null,null,null,null,null,null,"当該期に受講した科目の単位を区分ごとに以下の手順で",null,null,null,"D"]
[null,null,"基",null,"科",null,"１期",null,"２期",null,"３期",null,"４期",null,"５期",null,"６期",null,"７期",null,"８期",null,"９期",null,"10期",null,"11期",null,"12期",null,"13期",null,"14期",null,"15期",null,"16期",null,null,null,null,null,null,"入力し、要修得単位数と比較して単位取得状況を把握",null,null,null,"F"]
["分",null,"礎","門","目","位","評価","合計GP","評価","合計GP","評価","合計GP","評価","合計GP","評価","合計GP","評価","合計GP","評価","合計GP","評価","合計GP","評価","合計GP","評価","合計GP","評価","合計GP","評価","合計GP","評価","合計GP","評価","合計GP","評価","合計GP","評価","合計GP",null,null,null,null,null,"する。",null,null,null,"P"]
["基礎教育科目","必修科目","○"," ","微分積分学AⅠ",2,null,null,null,null,null,null,null,null,null,null,null,null,null,null,null,null,null,null,null,null,null,null,null,null,null,null,null,null,null,null,null,null,null,null,null,null,null,null,null,null,"必修科目",250421000101,{"$f":"E7","v":"微分積分学AⅠ"}]
[null,null,"○",null,"線形代数学Ⅰ",2,null,null,null,null,null,null,null,null,null,null,null,null,null,null,null,null,null,null,null,null,null,null,null,null,null,null,null,null,null,null,null,null,null,null,null,null,null,"１．黄色枠に受講科目の評価（A,B,C,D,F,P）を入力する。",null,null,null,250421000110,"線形代数学Ⅰ"]
[null,null,"○",null,"物理学基礎AⅠ",2,null,null,null,null,null,null,null,null,null,null,null,null,null,null,null,null,null,null,null,null,null,null,null,null,null,null,null,null,null,null,null,null,null,null,null,null,null,"２．オレンジ枠に合計修得単位数を入力する。",null,null,null,250152199102,"物理学基礎AⅠ","2件以上ヒット","技術者倫理 250227000170\n技術者倫理（機） 250152199102"]
[null,null,"○",null,"微分積分学AⅡ",2,null,null,null,null,null,null,null,null,null,null,null,null,null,null,null,null,null,null,null,null,null,null,null,null,null,null,null,null,null,null,null,null,null,null,null,null,null,"３．灰色枠に受講科目の合計GP（単位数×GP）を計算し、",null,null,null,250052100101,"微分積分学AⅡ"]
[null,null,"○",null,"線形代数学Ⅱ",2,null,null,null,null,null,null,null,null,null,null,null,null,null,null,null,null,null,null,null,null,null,null,null,null,null,null,null,null,null,null,null,null,null,null,null,null,null,"    その値を入力する。",null,null,null,250152111102,"線形代数学Ⅱ"]
[null,null,"○",null,"物理学基礎AⅡ",2,null,null,null,null,null,null,null,null,null,null,null,null,null,null,null,null,null,null,null,null,null,null,null,null,null,null,null,null,null,null,null,null,null,null,null,null,null,"　（評価とGPの関係：A=4,B=3,C=2,D=1,F=0,PはGPの該当",null,null,null,250421000120,"物理学基礎AⅡ"]
[null,"合計",null,null,null,12,null,{"$f":"SUM(H7:H12)","v":0},null,{"$f":"SUM(J7:J12)","v":0},null,{"$f":"SUM(L7:L12)","v":0},null,{"$f":"SUM(N7:N12)","v":0},null,{"$f":"SUM(P7:P12)","v":0},null,{"$f":"SUM(R7:R12)","v":0},null,{"$f":"SUM(T7:T12)","v":0},null,{"$f":"SUM(V7:V12)","v":0},null,{"$f":"SUM(X7:X12)","v":0},null,{"$f":"SUM(Z7:Z12)","v":0},null,{"$f":"SUM(AB7:AB12)","v":0},null,{"$f":"SUM(AD7:AD12)","v":0},null,{"$f":"SUM(AF7:AF12)","v":0},null,{"$f":"SUM(AH7:AH12)","v":0},null,{"$f":"SUM(AJ7:AJ12)","v":0},null,{"$f":"SUM(AL7:AL12)","v":0},{"$f":"SUM(G13,I13,K13,M13,O13,Q13,S13,U13,W13,Y13,AA13,AC13,AE13,AG13,AI13,AK13)","v":0},12,{"$f":"SUM(H13,J13,L13,N13,P13,R13,T13,V13,X13,Z13,AB13,AD13,AF13,AH13,AJ13,AL13)","v":0},null,null,"　　外なので合計GP欄は空欄とする。）",null,null,null,250421000130,{"$f":"B13","v":"合計"}]
[null,null,null,null,null,null,null,null,null,null,null,null,null,null,null,null,null,null,null,null,null,null,null,null,null,null,null,null,null,null,null,null,null,null,null,null,null,null,null,null,null,null,null,"４．修得単位数を要修得単位数と比較して単位取得状況"]
["専門科目"," ","○"," ","工学英語",2,null,null,null,null,null,null,null,null,null,null,null,null,null,null,null,null,null,null,null,null,null,null,null,null,null,null,null,null,null,null,null,null,null,null,null,null,null,"    を把握する。",null,null,null,259752111301,"工学英語"]
[null,null,"○",null,"機械英語Ⅰ",2,null,null,null,null,null,null,null,null,null,null,null,null,null,null,null,null,null,null,null,null,null,null,null,null,null,null,null,null,null,null,null,null,null,null,null,null,null,null,null,null,null,250152111112,"機械英語Ⅰ"]
[null," ","○"," ","機械英語Ⅱ",2,null,null,null,null,null,null,null,null,null,null,null,null,null,null,null,null,null,null,null,null,null,null,null,null,null,null,null,null,null,null,null,null,null,null,null,null,null,"※期をまたがって開講される科目は、成績の出された期に"]
[null,null,"○",null,"技　術　者　倫　理",2,null,null,null,null,null,null,null,null,null,null,null,null,null,null,null,null,null,null,null,null,null,null,null,null,null,null,null,null,null,null,null,null,null,null,null,null,null,"  記入する。例えば通年の場合、後期に記入する。"]
[null,null,null,"○","フレッシュマンセミナーⅡ",1,null,null,null,null,null,null,null,null,null,null,null,null,null,null,null,null,null,null,null,null,null,null,null,null,null,null,null,null,null,null,null,null,null,null,null,null,null,"※本表最下部の表の入力方法について",null,null,null,259752111402,"フレッシュマンセミナーⅡ"]
[null,null,null,"○","機 械 製 図  A&B",1,null,null,null,null,null,null,null,null,null,null,null,null,null,null,null,null,null,null,null,null,null,null,null,null,null,null,null,null,null,null,null,null,null,null,null,null,null,"　・P評価の単位数は当該期①の欄に、"]
[null,null,null,"○","機械工作実習 A&B",1,null,null,null,null,null,null,null,null,null,null,null,null,null,null,null,null,null,null,null,null,null,null,null,null,null,null,null,null,null,null,null,null,null,null,null,null,null,"　・F評価の単位数は当該期②の欄に、",null,null,null,250421000260,"機械工作実習 A&B"]
[null,null,null,"○","機械工学実験",1,null,null,null,null,null,null,null,null,null,null,null,null,null,null,null,null,null,null,null,null,null,null,null,null,null,null,null,null,null,null,null,null,null,null,null,null,null,"　・評価F科目の再履修での修得単位数は当該期③の欄に"]
[null,null," ","○","機械工学セミナー",2,null,null,null,null,null,null,null,null,null,null,null,null,null,null,null,null,null,null,null,null,null,null,null,null,null,null,null,null,null,null,null,null,null,null,null,null,null,"　　入力する。なお、②には再履修の科目は含まない。"]
[null,null," ","○","応用機械設計",2,null,null,null,null,null,null,null,null,null,null,null,null,null,null,null,null,null,null,null,null,null,null,null,null,null,null,null,null,null,null,null,null,null,null,null,null,null,null,null,null,null,250152113102,"応用機械設計"]
[null,null," ","○","数値計算とプログラム",2,null,null,null,null,null,null,null,null,null,null,null,null,null,null,null,null,null,null,null,null,null,null,null,null,null,null,null,null,null,null,null,null,null,null,null,null,null,"※評価Fの科目を再履修して単位を修得した場合の入力方"]
[null,null," ","○","創造機械設計",2,null,null,null,null,null,null,null,null,null,null,null,null,null,null,null,null,null,null,null,null,null,null,null,null,null,null,null,null,null,null,null,null,null,null,null,null,null,"  法について"]
[null," "," ","○","卒業論文",6,null,null,null,null,null,null,null,null,null,null,null,null,null,null,null,null,null,null,null,null,null,null,null,null,null,null,null,null,null,null,null,null,null,null,null,null,null,"  上記１～３の手順で入力する。",null,null,null,259752111601,"卒業論文"]
[null,"合計",null,null,null,26,null,{"$f":"SUM(H15:H27)","v":0},null,{"$f":"SUM(J15:J27)","v":0},null,{"$f":"SUM(L15:L27)","v":0},null,{"$f":"SUM(N15:N27)","v":0},null,{"$f":"SUM(P15:P27)","v":0},null,{"$f":"SUM(R15:R27)","v":0},null,{"$f":"SUM(T15:T27)","v":0},null,{"$f":"SUM(V15:V27)","v":0},null,{"$f":"SUM(X15:X27)","v":0},null,{"$f":"SUM(Z15:Z27)","v":0},null,{"$f":"SUM(AB15:AB27)","v":0},null,{"$f":"SUM(AD15:AD27)","v":0},null,{"$f":"SUM(AF15:AF27)","v":0},null,{"$f":"SUM(AH15:AH27)","v":0},null,{"$f":"SUM(AJ15:AJ27)","v":0},null,{"$f":"SUM(AL15:AL27)","v":0},{"$f":"SUM(G28,I28,K28,M28,O28,Q28,S28,U28,W28,Y28,AA28,AC28,AE28,AG28,AI28,AK28)","v":0},26,{"$f":"SUM(H28,J28,L28,N28,P28,R28,T28,V28,X28,Z28,AB28,AD28,AF28,AH28,AJ28,AL28)","v":0},null,null,"※既修得単位（D以上）の科目を再履修して単位を"]
[null,null,null,null,null,null,null,null,null,null,null,null,null,null,null,null,null,null,null,null,null,null,null,null,null,null,null,null,null,null,null,null,null,null,null,null,null,null,null,null,null,null,null,"　修得した場合の入力方法について"]
["専門科目","選択科目A群"," ","○","フレッシュマンセミナーⅠ",1,null,null,null,null,null,null,null,null,null,null,null,null,null,null,null,null,null,null,null,null,null,null,null,null,null,null,null,null,null,null,null,null,null,null,null,null,null,"　今期の分を上記1～3の手順で入力した後、",null,null,"選択科目A群",250152111101,{"$f":"E30","v":"フレッシュマンセミナーⅠ"}]
[null,null," ","○","工業力学Ⅰ及び演習 A&B",3,null,null,null,null,null,null,null,null,null,null,null,null,null,null,null,null,null,null,null,null,null,null,null,null,null,null,null,null,null,null,null,null,null,null,null,null,null,"  過去の評価（黄色枠）と合計GP（灰色枠）",null,null,null,250421000140,"工業力学Ⅰ及び演習 A&B"]
[null,null," ","○","工業力学Ⅱ及び演習 A&B",2,null,null,null,null,null,null,null,null,null,null,null,null,null,null,null,null,null,null,null,null,null,null,null,null,null,null,null,null,null,null,null,null,null,null,null,null,null,"　を削除し、過去のオレンジ枠の合計修得単位数",null,null,null,250421000150,"工業力学Ⅱ及び演習 A&B"]
[null,null," ","○","材料力学基礎及び演習 A&B",3,null,null,null,null,null,null,null,null,null,null,null,null,null,null,null,null,null,null,null,null,null,null,null,null,null,null,null,null,null,null,null,null,null,null,null,null,null,"　から今期再履修で修得した単位数を引いた値を",null,null,null,250421000160,"材料力学基礎及び演習 A&B"]
[null,null," ","○","工業熱力学基礎及び演習 A&B",3,null,null,null,null,null,null,null,null,null,null,null,null,null,null,null,null,null,null,null,null,null,null,null,null,null,null,null,null,null,null,null,null,null,null,null,null,null,"　過去のオレンジ枠の合計修得単位数に再入力する。",null,null,null,250421000170,"工業熱力学基礎及び演習 A&B"]
[null,null," ","○","応用数学Ⅰ及び演習 A&B",2,null,null,null,null,null,null,null,null,null,null,null,null,null,null,null,null,null,null,null,null,null,null,null,null,null,null,null,null,null,null,null,null,null,null,null,null,null,null,null,null,null,250421000180,"応用数学Ⅰ及び演習 A&B"]
[null,null,null,"○","電気電子工学基礎",2,null,null,null,null,null,null,null,null,null,null,null,null,null,null,null,null,null,null,null,null,null,null,null,null,null,null,null,null,null,null,null,null,null,null,null,null,null,"STEP２",null,null,null,250062100101,"電気電子工学基礎"]
[null,null," ","○","応用数学Ⅱ及び演習 A&B",2,null,null,null,null,null,null,null,null,null,null,null,null,null,null,null,null,null,null,null,null,null,null,null,null,null,null,null,null,null,null,null,null,null,null,null,null,null,"累積GPAの値を成績原簿と一致するかチェックする。",null,null,null,250421000190,"応用数学Ⅱ及び演習 A&B"]
[null,null," ","○","機械力学基礎及び演習 A&B",3,null,null,null,null,null,null,null,null,null,null,null,null,null,null,null,null,null,null,null,null,null,null,null,null,null,null,null,null,null,null,null,null,null,null,null,null,null,"区分ごとの単位修得状況の入力が終了した後に、シート",null,null,null,250421000200,"機械力学基礎及び演習 A&B"]
[null,null," ","○","流体力学基礎及び演習 A&B",3,null,null,null,null,null,null,null,null,null,null,null,null,null,null,null,null,null,null,null,null,null,null,null,null,null,null,null,null,null,null,null,null,null,null,null,null,null,"右下赤枠の「累積GPA」の値が、成績原簿に記載されて",null,null,null,250421000210,"流体力学基礎及び演習 A&B"]
[null,null," ","○","機械材料学基礎",2,null,null,null,null,null,null,null,null,null,null,null,null,null,null,null,null,null,null,null,null,null,null,null,null,null,null,null,null,null,null,null,null,null,null,null,null,null,"いる累積GPAの値と一致しているかチェックし、一致",null,null,null,250421000220,"機械材料学基礎"]
[null,null," ","○","材　　料　　力　　学",2,null,null,null,null,null,null,null,null,null,null,null,null,null,null,null,null,null,null,null,null,null,null,null,null,null,null,null,null,null,null,null,null,null,null,null,null,null,"していない場合はSTEP１に戻り、入力値に間違いが",null,null,null,250223010031,"材　　料　　力　　学","2件以上ヒット","材料力学 250223010031\n材料力学（機） 259752113101"]
[null,null," ","○","機　　　　構　　　　学",2,null,null,null,null,null,null,null,null,null,null,null,null,null,null,null,null,null,null,null,null,null,null,null,null,null,null,null,null,null,null,null,null,null,null,null,null,null,"ないか見直し、正しく入力する。",null,null,null,259752111108,"機　　　　構　　　　学"]
[null,null," ","○","計　　測　　工　　学",2,null,null,null,null,null,null,null,null,null,null,null,null,null,null,null,null,null,null,null,null,null,null,null,null,null,null,null,null,null,null,null,null,null,null,null,null,null,null,null,null,null,259752114104,"計　　測　　工　　学"]
[null,null,null,"○","工　業　熱　力　学",2,null,null,null,null,null,null,null,null,null,null,null,null,null,null,null,null,null,null,null,null,null,null,null,null,null,null,null,null,null,null,null,null,null,null,null,null,null,"（補足説明）",null,null,null,259752114101,"工　業　熱　力　学"]
[null,null," ","○","機械制御工学基礎及び演習 A&B",3,null,null,null,null,null,null,null,null,null,null,null,null,null,null,null,null,null,null,null,null,null,null,null,null,null,null,null,null,null,null,null,null,null,null,null,null,null,"※留年した場合は「期を増やす」欄で列を増やす。",null,null,null,250421000230,"機械制御工学基礎及び演習 A&B"]
[null,null,null,"○","３次元Ｃ Ａ Ｄ基礎",2,null,null,null,null,null,null,null,null,null,null,null,null,null,null,null,null,null,null,null,null,null,null,null,null,null,null,null,null,null,null,null,null,null,null,null,null,null,"※評価Pの科目については、GPおよびGPAの計算に含ま",null,null,null,250052100201,"３次元Ｃ Ａ Ｄ基礎"]
[null,null," ","○","機械設計工学 A&B",2,null,null,null,null,null,null,null,null,null,null,null,null,null,null,null,null,null,null,null,null,null,null,null,null,null,null,null,null,null,null,null,null,null,null,null,null,null,"　ない。しかしながら、進級・卒業要件の累積単位数",null,null,null,250421000240,"機械設計工学 A&B"]
[null,null," ","○","機　械　材　料　学",2,null,null,null,null,null,null,null,null,null,null,null,null,null,null,null,null,null,null,null,null,null,null,null,null,null,null,null,null,null,null,null,null,null,null,null,null,null,"　には含まれることがあるので、標準履修課程表で確認",null,null,null,259752113107,"機　械　材　料　学"]
[null,null," ","○","機　　械　　力　　学",2,null,null,null,null,null,null,null,null,null,null,null,null,null,null,null,null,null,null,null,null,null,null,null,null,null,null,null,null,null,null,null,null,null,null,null,null,null,"　すること。（インターンシップ等）",null,null,null,259752111104,"機　　械　　力　　学"]
[null,null," ","○","生産工学Ⅰ",2,null,null,null,null,null,null,null,null,null,null,null,null,null,null,null,null,null,null,null,null,null,null,null,null,null,null,null,null,null,null,null,null,null,null,null,null,null,"※随意科目については、GPおよびGPAの計算に含まれない。",null,null,null,250421000250,"生産工学Ⅰ"]
[null,null," ","○","弾　　性　　力　　学",2,null,null,null,null,null,null,null,null,null,null,null,null,null,null,null,null,null,null,null,null,null,null,null,null,null,null,null,null,null,null,null,null,null,null,null,null,null,"　また、進級・卒業要件にも含まれない。",null,null,null,259752113105,"弾　　性　　力　　学"]
[null,null," ","○","熱　　　　機　　　　関",2,null,null,null,null,null,null,null,null,null,null,null,null,null,null,null,null,null,null,null,null,null,null,null,null,null,null,null,null,null,null,null,null,null,null,null,null,null,null,null,null,null,259752114102,"熱　　　　機　　　　関"]
[null,null," ","○","流　　体　　力　　学",2,null,null,null,null,null,null,null,null,null,null,null,null,null,null,null,null,null,null,null,null,null,null,null,null,null,null,null,null,null,null,null,null,null,null,null,null,null,null,null,null,null,259752114103,"流　　体　　力　　学"]
[null,null,null,"○","生産工学Ⅱ",2,null,null,null,null,null,null,null,null,null,null,null,null,null,null,null,null,null,null,null,null,null,null,null,null,null,null,null,null,null,null,null,null,null,null,null,null,null,null,null,null,null,250421000270,"生産工学Ⅱ"]
[null,null," ","○","機械制御工学",2,null,null,null,null,null,null,null,null,null,null,null,null,null,null,null,null,null,null,null,null,null,null,null,null,null,null,null,null,null,null,null,null,null,null,null,null,null,null,null,null,null,259752113111,"機械制御工学"]
[null,null," ","○","ロ　ボ　ッ　ト　工　学",2,null,null,null,null,null,null,null,null,null,null,null,null,null,null,null,null,null,null,null,null,null,null,null,null,null,null,null,null,null,null,null,null,null,null,null,null,null,null,null,null,null,259752113112,"ロ　ボ　ッ　ト　工　学"]
[null,null," ","○","メカトロニクス",2,null,null,null,null,null,null,null,null,null,null,null,null,null,null,null,null,null,null,null,null,null,null,null,null,null,null,null,null,null,null,null,null,null,null,null,null,null,null,null,null,null,259752613136,"メカトロニクス"]
[null,null," ","○","流　　体　　機　　械",2,null,null,null,null,null,null,null,null,null,null,null,null,null,null,null,null,null,null,null,null,null,null,null,null,null,null,null,null,null,null,null,null,null,null,null,null,null,null,null,null,null,259752114107,"流　　体　　機　　械"]
[null,null," ","○","材料工学セミナー",2,null,null,null,null,null,null,null,null,null,null,null,null,null,null,null,null,null,null,null,null,null,null,null,null,null,null,null,null,null,null,null,null,null,null,null,null,null,null,null,null,null,251421000001,"材料工学セミナー"]
[null,null,null,"○","生産工学セミナー",2,null,null,null,null,null,null,null,null,null,null,null,null,null,null,null,null,null,null,null,null,null,null,null,null,null,null,null,null,null,null,null,null,null,null,null,null,null,null,null,null,null,250421000280,"生産工学セミナー"]
[null,null,null,"○","熱工学セミナー",2,null,null,null,null,null,null,null,null,null,null,null,null,null,null,null,null,null,null,null,null,null,null,null,null,null,null,null,null,null,null,null,null,null,null,null,null,null,null,null,null,null,250152115102,"熱工学セミナー"]
[null,null,null,"○","流体工学セミナー",2,null,null,null,null,null,null,null,null,null,null,null,null,null,null,null,null,null,null,null,null,null,null,null,null,null,null,null,null,null,null,null,null,null,null,null,null,null,null,null,null,null,250152114103,"流体工学セミナー"]
[null,null,null,"○","機械システム\n設計解析セミナー",2,null,null,null,null,null,null,null,null,null,null,null,null,null,null,null,null,null,null,null,null,null,null,null,null,null,null,null,null,null,null,null,null,null,null,null,null,null,null,null,null,null,259652114115,"機械システム\n設計解析セミナー"]
[null,null,null,"○","機械システム\n計測制御セミナー",2,null,null,null,null,null,null,null,null,null,null,null,null,null,null,null,null,null,null,null,null,null,null,null,null,null,null,null,null,null,null,null,null,null,null,null,null,null,null,null,null,null,250152116103,"機械システム\n計測制御セミナー"]
[null,"合計",null,null,null,75,null,{"$f":"SUM(H30:H64)","v":0},null,{"$f":"SUM(J30:J64)","v":0},null,{"$f":"SUM(L30:L64)","v":0},null,{"$f":"SUM(N30:N64)","v":0},null,{"$f":"SUM(P30:P64)","v":0},null,{"$f":"SUM(R30:R64)","v":0},null,{"$f":"SUM(T30:T64)","v":0},null,{"$f":"SUM(V30:V64)","v":0},null,{"$f":"SUM(X30:X64)","v":0},null,{"$f":"SUM(Z30:Z64)","v":0},null,{"$f":"SUM(AB30:AB64)","v":0},null,{"$f":"SUM(AD30:AD64)","v":0},null,{"$f":"SUM(AF30:AF64)","v":0},null,{"$f":"SUM(AH30:AH64)","v":0},null,{"$f":"SUM(AJ30:AJ64)","v":0},null,{"$f":"SUM(AL30:AL64)","v":0},{"$f":"SUM(G65,I65,K65,M65,O65,Q65,S65,U65,W65,Y65,AA65,AC65,AE65,AG65,AI65,AK65)","v":0},48,{"$f":"SUM(H65,J65,L65,N65,P65,R65,T65,V65,X65,Z65,AB65,AD65,AF65,AH65,AJ65,AL65)","v":0}]
[]
[null,null,"○"," ","情報システム",2,null,null,null,null,null,null,null,null,null,null,null,null,null,null,null,null,null,null,null,null,null,null,null,null,null,null,null,null,null,null,null,null,null,null,null,null,null,null,null,null,null,259742112104,{"$f":"E67","v":"情報システム"}]
[null,null,"○"," ","化学基礎",2,null,null,null,null,null,null,null,null,null,null,null,null,null,null,null,null,null,null,null,null,null,null,null,null,null,null,null,null,null,null,null,null,null,null,null,null,null,null,null,null,null,250099110002,"化学基礎"]
[null,null,"○"," ","地球科学基礎",2,null,null,null,null,null,null,null,null,null,null,null,null,null,null,null,null,null,null,null,null,null,null,null,null,null,null,null,null,null,null,null,null,null,null,null,null,null,null,null,null,null,250299110001,"地球科学基礎"]
[null,"選","○"," ","原子力・放射線と環境",2,null,null,null,null,null,null,null,null,null,null,null,null,null,null,null,null,null,null,null,null,null,null,null,null,null,null,null,null,null,null,null,null,null,null,null,null,null,null,null,null,null,250042099101,"原子力・放射線と環境"]
[null,"択","○"," ","工　　　場　　　見　　　学",1,null,null,null,null,null,null,null,null,null,null,null,null,null,null,null,null,null,null,null,null,null,null,null,null,null,null,null,null,null,null,null,null,null,null,null,null,null,null,null,null,null,250122100001,"工　　　場　　　見　　　学"]
[null,"科","○"," ","インターンシップ",1,null,null,null,null,null,null,null,null,null,null,null,null,null,null,null,null,null,null,null,null,null,null,null,null,null,null,null,null,null,null,null,null,null,null,null,null,null,null,null,null,null,250223010041,"インターンシップ"]
[null,"目","○"," ","生産工学論",2,null,null,null,null,null,null,null,null,null,null,null,null,null,null,null,null,null,null,null,null,null,null,null,null,null,null,null,null,null,null,null,null,null,null,null,null,null,null,null,null,null,250299200001,"生産工学論"]
[null,"Ｂ","○",null,"エレクトロニクス論",2,null,null,null,null,null,null,null,null,null,null,null,null,null,null,null,null,null,null,null,null,null,null,null,null,null,null,null,null,null,null,null,null,null,null,null,null,null,null,null,null,null,250228100002,"エレクトロニクス論"]
[null,"群","○"," ","エネルギー工学論",2,null,null,null,null,null,null,null,null,null,null,null,null,null,null,null,null,null,null,null,null,null,null,null,null,null,null,null,null,null,null,null,null,null,null,null,null,null,null,null,null,null,250228100003,"エネルギー工学論"]
[null,null,"○"," ","環境工学論",2,null,null,null,null,null,null,null,null,null,null,null,null,null,null,null,null,null,null,null,null,null,null,null,null,null,null,null,null,null,null,null,null,null,null,null,null,null,null,null,null,null,250228100004,"環境工学論"]
[null," ","○"," ","材　料　科　学　論",2,null,null,null,null,null,null,null,null,null,null,null,null,null,null,null,null,null,null,null,null,null,null,null,null,null,null,null,null,null,null,null,null,null,null,null,null,null,null,null,null,null,250228100005,"材　料　科　学　論"]
[null," ","○"," ","科　学　技　術　論",2,null,null,null,null,null,null,null,null,null,null,null,null,null,null,null,null,null,null,null,null,null,null,null,null,null,null,null,null,null,null,null,null,null,null,null,null,null,null,null,null,null,250228100006,"科　学　技　術　論"]
[null,"合計",null,null,null,22,null,{"$f":"SUM(H67:H78)","v":0},null,{"$f":"SUM(J67:J78)","v":0},null,{"$f":"SUM(L67:L78)","v":0},null,{"$f":"SUM(N67:N78)","v":0},null,{"$f":"SUM(P67:P78)","v":0},null,{"$f":"SUM(R67:R78)","v":0},null,{"$f":"SUM(T67:T78)","v":0},null,{"$f":"SUM(V67:V78)","v":0},null,{"$f":"SUM(X67:X78)","v":0},null,{"$f":"SUM(Z67:Z78)","v":0},null,{"$f":"SUM(AB67:AB78)","v":0},null,{"$f":"SUM(AD67:AD78)","v":0},null,{"$f":"SUM(AF67:AF78)","v":0},null,{"$f":"SUM(AH67:AH78)","v":0},null,{"$f":"SUM(AJ67:AJ78)","v":0},null,{"$f":"SUM(AL67:AL78)","v":0},{"$f":"SUM(G79,I79,K79,M79,O79,Q79,S79,U79,W79,Y79,AA79,AC79,AE79,AG79,AI79,AK79)","v":0},4,{"$f":"SUM(H79,J79,L79,N79,P79,R79,T79,V79,X79,Z79,AB79,AD79,AF79,AH79,AJ79,AL79)","v":0}]
[]
["専門教育科目合計（単位数とGP）",null,null,null,null,null,{"$f":"SUM(G13,G28,G65,G79)","v":0},{"$f":"SUM(H13,H28,H65,H79)","v":0},{"$f":"SUM(I13,I28,I65,I79)","v":0},0,0,0,0,0,0,0,0,0,0,0,0,0,0,0,0,0,0,0,0,0,0,0,0,0,0,0,0,0,{"$f":"SUM(G81,I81,K81,M81,O81,Q81,S81,U81,W81,Y81,AA81,AC81,AE81,AG81,AI81,AK81)","v":0},93,{"$f":"SUM(H81,J81,L81,N81,P81,R81,T81,V81,X81,Z81,AB81,AD81,AF81,AH81,AJ81,AL81)","v":0}]
["(共通＋専門)教育科目合計（単位数とGP）",null,null,null,null,null,{"$f":"'単位修得状況確認表（共通教育科目，一般学生）'!H23+G81","v":0},{"$f":"'単位修得状況確認表（共通教育科目，一般学生）'!I23+H81","v":0},{"$f":"'単位修得状況確認表（共通教育科目，一般学生）'!J23+I81","v":0},{"$f":"'単位修得状況確認表（共通教育科目，一般学生）'!K23+J81","v":0},{"$f":"'単位修得状況確認表（共通教育科目，一般学生）'!L23+K81","v":0},{"$f":"'単位修得状況確認表（共通教育科目，一般学生）'!M23+L81","v":0},{"$f":"'単位修得状況確認表（共通教育科目，一般学生）'!N23+M81","v":0},{"$f":"'単位修得状況確認表（共通教育科目，一般学生）'!O23+N81","v":0},{"$f":"'単位修得状況確認表（共通教育科目，一般学生）'!P23+O81","v":0},{"$f":"'単位修得状況確認表（共通教育科目，一般学生）'!Q23+P81","v":0},{"$f":"'単位修得状況確認表（共通教育科目，一般学生）'!R23+Q81","v":0},{"$f":"'単位修得状況確認表（共通教育科目，一般学生）'!S23+R81","v":0},{"$f":"'単位修得状況確認表（共通教育科目，一般学生）'!T23+S81","v":0},{"$f":"'単位修得状況確認表（共通教育科目，一般学生）'!U23+T81","v":0},{"$f":"'単位修得状況確認表（共通教育科目，一般学生）'!V23+U81","v":0},{"$f":"'単位修得状況確認表（共通教育科目，一般学生）'!W23+V81","v":0},{"$f":"'単位修得状況確認表（共通教育科目，一般学生）'!X23+W81","v":0},{"$f":"'単位修得状況確認表（共通教育科目，一般学生）'!Y23+X81","v":0},{"$f":"'単位修得状況確認表（共通教育科目，一般学生）'!Z23+Y81","v":0},{"$f":"'単位修得状況確認表（共通教育科目，一般学生）'!AA23+Z81","v":0},{"$f":"'単位修得状況確認表（共通教育科目，一般学生）'!AB23+AA81","v":0},{"$f":"'単位修得状況確認表（共通教育科目，一般学生）'!AC23+AB81","v":0},{"$f":"'単位修得状況確認表（共通教育科目，一般学生）'!AD23+AC81","v":0},{"$f":"'単位修得状況確認表（共通教育科目，一般学生）'!AE23+AD81","v":0},{"$f":"'単位修得状況確認表（共通教育科目，一般学生）'!AF23+AE81","v":0},{"$f":"'単位修得状況確認表（共通教育科目，一般学生）'!AG23+AF81","v":0},{"$f":"'単位修得状況確認表（共通教育科目，一般学生）'!AH23+AG81","v":0},{"$f":"'単位修得状況確認表（共通教育科目，一般学生）'!AI23+AH81","v":0},{"$f":"'単位修得状況確認表（共通教育科目，一般学生）'!AJ23+AI81","v":0},{"$f":"'単位修得状況確認表（共通教育科目，一般学生）'!AK23+AJ81","v":0},{"$f":"'単位修得状況確認表（共通教育科目，一般学生）'!AL23+AK81","v":0},{"$f":"'単位修得状況確認表（共通教育科目，一般学生）'!AM23+AL81","v":0},{"$f":"SUM(G82,I82,K82,M82,O82,Q82,S82,U82,W82,Y82,AA82,AC82,AE82,AG82,AI82,AK82)","v":0},124,{"$f":"SUM(H82,J82,L82,N82,P82,R82,T82,V82,X82,Z82,AB82,AD82,AF82,AH82,AJ82,AL82)","v":0}]
["※","「期を増やす」欄により学年を４年間増やすことが可。",null,null,null,null,null,null,null,null,null,null,null,null,null,null,null,null,null,null,null,null,null,null,null,null,null,null,null,null,null,null,null,null,null,null,null,null,"累積GPA",null,{"$f":"IF(AM82-AM85>0,AO82/(AM82-AM85-'単位修得状況確認表（共通教育科目，一般学生）'!AN26+AM86+'単位修得状況確認表（共通教育科目，一般学生）'!AN27-AM87-'単位修得状況確認表（共通教育科目，一般学生）'!AN28),\"\")","v":""}]
[]
["①【専門教育科目】評価Pの単位数",null,null,null,null,null,null,null,null,null,null,null,null,null,null,null,null,null,null,null,null,null,null,null,null,null,null,null,null,null,null,null,null,null,null,null,null,null,{"$f":"SUM(G85:AL85)","v":0}]
["②【専門教育科目】不合格（評価F）の単位数",null,null,null,null,null,null,null,null,null,null,null,null,null,null,null,null,null,null,null,null,null,null,null,null,null,null,null,null,null,null,null,null,null,null,null,null,null,{"$f":"SUM(G86:AL86)","v":0}]
["③【専門教育科目】評価F科目の再履修での修得単位数",null,null,null,null,null,null,null,null,null,null,null,null,null,null,null,null,null,null,null,null,null,null,null,null,null,null,null,null,null,null,null,null,null,null,null,null,null,{"$f":"SUM(G87:AL87)","v":0}]

{"sheet":"累積グラフ","index":5,"n_rows":247,"n_cols":7,"rows_kept":247,"cut":false,"hidden":false,"merged":[[3,2,3,3],[3,4,3,5],[42,2,42,3],[42,4,42,5],[81,2,81,3]]}
[]
[null,"共通教育科目（必修科目）"]
[]
[null,null,"初年次教育科目",null,"ｸﾞﾛｰﾊﾞﾙ教育科目"]
[null,null,"取得単位数","累積取得単位数","取得単位数","累積取得単位数"]
[null,"1期終了時",{"$f":"SUM('単位修得状況確認表（共通教育科目，一般学生）'!H$7:H$12)","v":0},{"$f":"SUM(C$6:C6)","v":0},{"$f":"SUM('単位修得状況確認表（共通教育科目，一般学生）'!H$13:H$14)","v":0},{"$f":"SUM(E$6:E6)","v":0}]
[null,"2期終了時",{"$f":"SUM('単位修得状況確認表（共通教育科目，一般学生）'!J$7:J$12)","v":0},{"$f":"SUM(C$6:C7)","v":0},{"$f":"SUM('単位修得状況確認表（共通教育科目，一般学生）'!J$13:J$14)","v":0},{"$f":"SUM(E$6:E7)","v":0}]
[null,"3期終了時",{"$f":"SUM('単位修得状況確認表（共通教育科目，一般学生）'!L$7:L$12)","v":0},{"$f":"SUM(C$6:C8)","v":0},{"$f":"SUM('単位修得状況確認表（共通教育科目，一般学生）'!L$13:L$14)","v":0},{"$f":"SUM(E$6:E8)","v":0}]
[null,"4期終了時",{"$f":"SUM('単位修得状況確認表（共通教育科目，一般学生）'!N$7:N$12)","v":0},{"$f":"SUM(C$6:C9)","v":0},{"$f":"SUM('単位修得状況確認表（共通教育科目，一般学生）'!N$13:N$14)","v":0},{"$f":"SUM(E$6:E9)","v":0}]
[null,"5期終了時",{"$f":"SUM('単位修得状況確認表（共通教育科目，一般学生）'!P$7:P$12)","v":0},{"$f":"SUM(C$6:C10)","v":0},{"$f":"SUM('単位修得状況確認表（共通教育科目，一般学生）'!P$13:P$14)","v":0},{"$f":"SUM(E$6:E10)","v":0}]
[null,"6期終了時",{"$f":"SUM('単位修得状況確認表（共通教育科目，一般学生）'!R$7:R$12)","v":0},{"$f":"SUM(C$6:C11)","v":0},{"$f":"SUM('単位修得状況確認表（共通教育科目，一般学生）'!R$13:R$14)","v":0},{"$f":"SUM(E$6:E11)","v":0}]
[null,"7期終了時",{"$f":"SUM('単位修得状況確認表（共通教育科目，一般学生）'!T$7:T$12)","v":0},{"$f":"SUM(C$6:C12)","v":0},{"$f":"SUM('単位修得状況確認表（共通教育科目，一般学生）'!T$13:T$14)","v":0},{"$f":"SUM(E$6:E12)","v":0}]
[null,"8期終了時",{"$f":"SUM('単位修得状況確認表（共通教育科目，一般学生）'!V$7:V$12)","v":0},{"$f":"SUM(C$6:C13)","v":0},{"$f":"SUM('単位修得状況確認表（共通教育科目，一般学生）'!V$13:V$14)","v":0},{"$f":"SUM(E$6:E13)","v":0}]
[null,"9期終了時",{"$f":"SUM('単位修得状況確認表（共通教育科目，一般学生）'!X$7:X$12)","v":0},{"$f":"IF(SUM($C205:$C$212)=0,\"\",SUM(C$6:C14))","v":""},{"$f":"SUM('単位修得状況確認表（共通教育科目，一般学生）'!X$13:X$14)","v":0},{"$f":"IF(SUM($C205:$C$212)=0,\"\",SUM(E$6:E14))","v":""}]
[null,"10期終了時",{"$f":"SUM('単位修得状況確認表（共通教育科目，一般学生）'!Z$7:Z$12)","v":0},{"$f":"IF(SUM($C206:$C$212)=0,\"\",SUM(C$6:C15))","v":""},{"$f":"SUM('単位修得状況確認表（共通教育科目，一般学生）'!Z$13:Z$14)","v":0},{"$f":"IF(SUM($C206:$C$212)=0,\"\",SUM(E$6:E15))","v":""}]
[null,"11期終了時",{"$f":"SUM('単位修得状況確認表（共通教育科目，一般学生）'!AB$7:AB$12)","v":0},{"$f":"IF(SUM($C207:$C$212)=0,\"\",SUM(C$6:C16))","v":""},{"$f":"SUM('単位修得状況確認表（共通教育科目，一般学生）'!AB$13:AB$14)","v":0},{"$f":"IF(SUM($C207:$C$212)=0,\"\",SUM(E$6:E16))","v":""}]
[null,"12期終了時",{"$f":"SUM('単位修得状況確認表（共通教育科目，一般学生）'!AD$7:AD$12)","v":0},{"$f":"IF(SUM($C208:$C$212)=0,\"\",SUM(C$6:C17))","v":""},{"$f":"SUM('単位修得状況確認表（共通教育科目，一般学生）'!AD$13:AD$14)","v":0},{"$f":"IF(SUM($C208:$C$212)=0,\"\",SUM(E$6:E17))","v":""}]
[null,"13期終了時",{"$f":"SUM('単位修得状況確認表（共通教育科目，一般学生）'!AF$7:AF$12)","v":0},{"$f":"IF(SUM($C209:$C$212)=0,\"\",SUM(C$6:C18))","v":""},{"$f":"SUM('単位修得状況確認表（共通教育科目，一般学生）'!AF$13:AF$14)","v":0},{"$f":"IF(SUM($C209:$C$212)=0,\"\",SUM(E$6:E18))","v":""}]
[null,"14期終了時",{"$f":"SUM('単位修得状況確認表（共通教育科目，一般学生）'!AH$7:AH$12)","v":0},{"$f":"IF(SUM($C210:$C$212)=0,\"\",SUM(C$6:C19))","v":""},{"$f":"SUM('単位修得状況確認表（共通教育科目，一般学生）'!AH$13:AH$14)","v":0},{"$f":"IF(SUM($C210:$C$212)=0,\"\",SUM(E$6:E19))","v":""}]
[null,"15期終了時",{"$f":"SUM('単位修得状況確認表（共通教育科目，一般学生）'!AJ$7:AJ$12)","v":0},{"$f":"IF(SUM($C211:$C$212)=0,\"\",SUM(C$6:C20))","v":""},{"$f":"SUM('単位修得状況確認表（共通教育科目，一般学生）'!AJ$13:AJ$14)","v":0},{"$f":"IF(SUM($C211:$C$212)=0,\"\",SUM(E$6:E20))","v":""}]
[null,"16期終了時",{"$f":"SUM('単位修得状況確認表（共通教育科目，一般学生）'!AL$7:AL$12)","v":0},{"$f":"IF(SUM($C212:$C$212)=0,\"\",SUM(C$6:C21))","v":""},{"$f":"SUM('単位修得状況確認表（共通教育科目，一般学生）'!AL$13:AL$14)","v":0},{"$f":"IF(SUM($C212:$C$212)=0,\"\",SUM(E$6:E21))","v":""}]
[]
[]
[]
[]
[]
[]
[]
[]
[]
[]
[]
[]
[]
[]
[]
[]
[]
[]
[]
[null,"共通教育科目（選択必修科目）"]
[]
[null,null,"教養教育科目",null,"教養活用科目"]
[null,null,"取得単位数","累積取得単位数","取得単位数","累積取得単位数"]
[null,"1期終了時",{"$f":"SUM('単位修得状況確認表（共通教育科目，一般学生）'!H$16:H$19)","v":0},{"$f":"SUM(C$45:C45)","v":0},{"$f":"SUM('単位修得状況確認表（共通教育科目，一般学生）'!H$20:H$21)","v":0},{"$f":"SUM(E$45:E45)","v":0}]
[null,"2期終了時",{"$f":"SUM('単位修得状況確認表（共通教育科目，一般学生）'!J$16:J$19)","v":0},{"$f":"SUM(C$45:C46)","v":0},{"$f":"SUM('単位修得状況確認表（共通教育科目，一般学生）'!J$20:J$21)","v":0},{"$f":"SUM(E$45:E46)","v":0}]
[null,"3期終了時",{"$f":"SUM('単位修得状況確認表（共通教育科目，一般学生）'!L$16:L$19)","v":0},{"$f":"SUM(C$45:C47)","v":0},{"$f":"SUM('単位修得状況確認表（共通教育科目，一般学生）'!L$20:L$21)","v":0},{"$f":"SUM(E$45:E47)","v":0}]
[null,"4期終了時",{"$f":"SUM('単位修得状況確認表（共通教育科目，一般学生）'!N$16:N$19)","v":0},{"$f":"SUM(C$45:C48)","v":0},{"$f":"SUM('単位修得状況確認表（共通教育科目，一般学生）'!N$20:N$21)","v":0},{"$f":"SUM(E$45:E48)","v":0}]
[null,"5期終了時",{"$f":"SUM('単位修得状況確認表（共通教育科目，一般学生）'!P$16:P$19)","v":0},{"$f":"SUM(C$45:C49)","v":0},{"$f":"SUM('単位修得状況確認表（共通教育科目，一般学生）'!P$20:P$21)","v":0},{"$f":"SUM(E$45:E49)","v":0}]
[null,"6期終了時",{"$f":"SUM('単位修得状況確認表（共通教育科目，一般学生）'!R$16:R$19)","v":0},{"$f":"SUM(C$45:C50)","v":0},{"$f":"SUM('単位修得状況確認表（共通教育科目，一般学生）'!R$20:R$21)","v":0},{"$f":"SUM(E$45:E50)","v":0}]
[null,"7期終了時",{"$f":"SUM('単位修得状況確認表（共通教育科目，一般学生）'!T$16:T$19)","v":0},{"$f":"SUM(C$45:C51)","v":0},{"$f":"SUM('単位修得状況確認表（共通教育科目，一般学生）'!T$20:T$21)","v":0},{"$f":"SUM(E$45:E51)","v":0}]
[null,"8期終了時",{"$f":"SUM('単位修得状況確認表（共通教育科目，一般学生）'!V$16:V$19)","v":0},{"$f":"SUM(C$45:C52)","v":0},{"$f":"SUM('単位修得状況確認表（共通教育科目，一般学生）'!V$20:V$21)","v":0},{"$f":"SUM(E$45:E52)","v":0}]
[null,"9期終了時",{"$f":"SUM('単位修得状況確認表（共通教育科目，一般学生）'!X$16:X$19)","v":0},{"$f":"IF(SUM($C205:$C$212)=0,\"\",SUM(C$45:C53))","v":""},{"$f":"SUM('単位修得状況確認表（共通教育科目，一般学生）'!X$20:X$21)","v":0},{"$f":"IF(SUM($C205:$C$212)=0,\"\",SUM(E$45:E53))","v":""}]
[null,"10期終了時",{"$f":"SUM('単位修得状況確認表（共通教育科目，一般学生）'!Z$16:Z$19)","v":0},{"$f":"IF(SUM($C206:$C$212)=0,\"\",SUM(C$45:C54))","v":""},{"$f":"SUM('単位修得状況確認表（共通教育科目，一般学生）'!Z$20:Z$21)","v":0},{"$f":"IF(SUM($C206:$C$212)=0,\"\",SUM(E$45:E54))","v":""}]
[null,"11期終了時",{"$f":"SUM('単位修得状況確認表（共通教育科目，一般学生）'!AB$16:AB$19)","v":0},{"$f":"IF(SUM($C207:$C$212)=0,\"\",SUM(C$45:C55))","v":""},{"$f":"SUM('単位修得状況確認表（共通教育科目，一般学生）'!AB$20:AB$21)","v":0},{"$f":"IF(SUM($C207:$C$212)=0,\"\",SUM(E$45:E55))","v":""}]
[null,"12期終了時",{"$f":"SUM('単位修得状況確認表（共通教育科目，一般学生）'!AD$16:AD$19)","v":0},{"$f":"IF(SUM($C208:$C$212)=0,\"\",SUM(C$45:C56))","v":""},{"$f":"SUM('単位修得状況確認表（共通教育科目，一般学生）'!AD$20:AD$21)","v":0},{"$f":"IF(SUM($C208:$C$212)=0,\"\",SUM(E$45:E56))","v":""}]
[null,"13期終了時",{"$f":"SUM('単位修得状況確認表（共通教育科目，一般学生）'!AF$16:AF$19)","v":0},{"$f":"IF(SUM($C209:$C$212)=0,\"\",SUM(C$45:C57))","v":""},{"$f":"SUM('単位修得状況確認表（共通教育科目，一般学生）'!AF$20:AF$21)","v":0},{"$f":"IF(SUM($C209:$C$212)=0,\"\",SUM(E$45:E57))","v":""}]
[null,"14期終了時",{"$f":"SUM('単位修得状況確認表（共通教育科目，一般学生）'!AH$16:AH$19)","v":0},{"$f":"IF(SUM($C210:$C$212)=0,\"\",SUM(C$45:C58))","v":""},{"$f":"SUM('単位修得状況確認表（共通教育科目，一般学生）'!AH$20:AH$21)","v":0},{"$f":"IF(SUM($C210:$C$212)=0,\"\",SUM(E$45:E58))","v":""}]
[null,"15期終了時",{"$f":"SUM('単位修得状況確認表（共通教育科目，一般学生）'!AJ$16:AJ$19)","v":0},{"$f":"IF(SUM($C211:$C$212)=0,\"\",SUM(C$45:C59))","v":""},{"$f":"SUM('単位修得状況確認表（共通教育科目，一般学生）'!AJ$20:AJ$21)","v":0},{"$f":"IF(SUM($C211:$C$212)=0,\"\",SUM(E$45:E59))","v":""}]
[null,"16期終了時",{"$f":"SUM('単位修得状況確認表（共通教育科目，一般学生）'!AL$16:AL$19)","v":0},{"$f":"IF(SUM($C212:$C$212)=0,\"\",SUM(C$45:C60))","v":""},{"$f":"SUM('単位修得状況確認表（共通教育科目，一般学生）'!AL$20:AL$21)","v":0},{"$f":"IF(SUM($C212:$C$212)=0,\"\",SUM(E$45:E60))","v":""}]
[]
[]
[]
[]
[]
[]
[]
[]
[]
[]
[]
[]
[]
[]
[]
[]
[]
[]
[]
[null,"専門教育科目（基礎教育科目）"]
[]
[null,null,"必修科目"]
[null,null,"取得単位数","累積取得単位数"]
[null,"1期終了時",{"$f":"'単位修得状況確認表（専門教育科目）'!G$13","v":0},{"$f":"SUM(C$84:C84)","v":0}]
[null,"2期終了時",{"$f":"'単位修得状況確認表（専門教育科目）'!I$13","v":0},{"$f":"SUM(C$84:C85)","v":0}]
[null,"3期終了時",{"$f":"'単位修得状況確認表（専門教育科目）'!K$13","v":0},{"$f":"SUM(C$84:C86)","v":0}]
[null,"4期終了時",{"$f":"'単位修得状況確認表（専門教育科目）'!M$13","v":0},{"$f":"SUM(C$84:C87)","v":0}]
[null,"5期終了時",{"$f":"'単位修得状況確認表（専門教育科目）'!O$13","v":0},{"$f":"SUM(C$84:C88)","v":0}]
[null,"6期終了時",{"$f":"'単位修得状況確認表（専門教育科目）'!Q$13","v":0},{"$f":"SUM(C$84:C89)","v":0}]
[null,"7期終了時",{"$f":"'単位修得状況確認表（専門教育科目）'!S$13","v":0},{"$f":"SUM(C$84:C90)","v":0}]
[null,"8期終了時",{"$f":"'単位修得状況確認表（専門教育科目）'!U$13","v":0},{"$f":"SUM(C$84:C91)","v":0}]
[null,"9期終了時",{"$f":"'単位修得状況確認表（専門教育科目）'!W$13","v":0},{"$f":"IF(SUM($C205:$C$212)=0,\"\",SUM(C$84:C92))","v":""}]
[null,"10期終了時",{"$f":"'単位修得状況確認表（専門教育科目）'!Y$13","v":0},{"$f":"IF(SUM($C206:$C$212)=0,\"\",SUM(C$84:C93))","v":""}]
[null,"11期終了時",{"$f":"'単位修得状況確認表（専門教育科目）'!AA$13","v":0},{"$f":"IF(SUM($C207:$C$212)=0,\"\",SUM(C$84:C94))","v":""}]
[null,"12期終了時",{"$f":"'単位修得状況確認表（専門教育科目）'!AC$13","v":0},{"$f":"IF(SUM($C208:$C$212)=0,\"\",SUM(C$84:C95))","v":""}]
[null,"13期終了時",{"$f":"'単位修得状況確認表（専門教育科目）'!AE$13","v":0},{"$f":"IF(SUM($C209:$C$212)=0,\"\",SUM(C$84:C96))","v":""}]
[null,"14期終了時",{"$f":"'単位修得状況確認表（専門教育科目）'!AG$13","v":0},{"$f":"IF(SUM($C210:$C$212)=0,\"\",SUM(C$84:C97))","v":""}]
[null,"15期終了時",{"$f":"'単位修得状況確認表（専門教育科目）'!AI$13","v":0},{"$f":"IF(SUM($C211:$C$212)=0,\"\",SUM(C$84:C98))","v":""}]
[null,"16期終了時",{"$f":"'単位修得状況確認表（専門教育科目）'!AK$13","v":0},{"$f":"IF(SUM($C212:$C$212)=0,\"\",SUM(C$84:C99))","v":""}]
[]
[]
[]
[]
[]
[]
[]
[null,"専門教育科目（必修科目）"]
[]
[null,null,"取得単位数","累積取得単位数"]
[null,"1期終了時",{"$f":"'単位修得状況確認表（専門教育科目）'!G$28","v":0},{"$f":"SUM(C$110:C110)","v":0}]
[null,"2期終了時",{"$f":"'単位修得状況確認表（専門教育科目）'!I$28","v":0},{"$f":"SUM(C$110:C111)","v":0}]
[null,"3期終了時",{"$f":"'単位修得状況確認表（専門教育科目）'!K$28","v":0},{"$f":"SUM(C$110:C112)","v":0}]
[null,"4期終了時",{"$f":"'単位修得状況確認表（専門教育科目）'!M$28","v":0},{"$f":"SUM(C$110:C113)","v":0}]
[null,"5期終了時",{"$f":"'単位修得状況確認表（専門教育科目）'!O$28","v":0},{"$f":"SUM(C$110:C114)","v":0}]
[null,"6期終了時",{"$f":"'単位修得状況確認表（専門教育科目）'!Q$28","v":0},{"$f":"SUM(C$110:C115)","v":0}]
[null,"7期終了時",{"$f":"'単位修得状況確認表（専門教育科目）'!S$28","v":0},{"$f":"SUM(C$110:C116)","v":0}]
[null,"8期終了時",{"$f":"'単位修得状況確認表（専門教育科目）'!U$28","v":0},{"$f":"SUM(C$110:C117)","v":0}]
[null,"9期終了時",{"$f":"'単位修得状況確認表（専門教育科目）'!W$28","v":0},{"$f":"IF(SUM($C205:$C$212)=0,\"\",SUM(C$110:C118))","v":""}]
[null,"10期終了時",{"$f":"'単位修得状況確認表（専門教育科目）'!Y$28","v":0},{"$f":"IF(SUM($C206:$C$212)=0,\"\",SUM(C$110:C119))","v":""}]
[null,"11期終了時",{"$f":"'単位修得状況確認表（専門教育科目）'!AA$28","v":0},{"$f":"IF(SUM($C207:$C$212)=0,\"\",SUM(C$110:C120))","v":""}]
[null,"12期終了時",{"$f":"'単位修得状況確認表（専門教育科目）'!AC$28","v":0},{"$f":"IF(SUM($C208:$C$212)=0,\"\",SUM(C$110:C121))","v":""}]
[null,"13期終了時",{"$f":"'単位修得状況確認表（専門教育科目）'!AE$28","v":0},{"$f":"IF(SUM($C209:$C$212)=0,\"\",SUM(C$110:C122))","v":""}]
[null,"14期終了時",{"$f":"'単位修得状況確認表（専門教育科目）'!AG$28","v":0},{"$f":"IF(SUM($C210:$C$212)=0,\"\",SUM(C$110:C123))","v":""}]
[null,"15期終了時",{"$f":"'単位修得状況確認表（専門教育科目）'!AI$28","v":0},{"$f":"IF(SUM($C211:$C$212)=0,\"\",SUM(C$110:C124))","v":""}]
[null,"16期終了時",{"$f":"'単位修得状況確認表（専門教育科目）'!AK$28","v":0},{"$f":"IF(SUM($C212:$C$212)=0,\"\",SUM(C$110:C125))","v":""}]
[]
[]
[]
[]
[]
[]
[]
[null,"専門教育科目（選択科目A群）"]
[]
[null,null,"取得単位数","累積取得単位数"]
[null,"1期終了時",{"$f":"'単位修得状況確認表（専門教育科目）'!G$65","v":0},{"$f":"SUM(C$136:C136)","v":0}]
[null,"2期終了時",{"$f":"'単位修得状況確認表（専門教育科目）'!I$65","v":0},{"$f":"SUM(C$136:C137)","v":0}]
[null,"3期終了時",{"$f":"'単位修得状況確認表（専門教育科目）'!K$65","v":0},{"$f":"SUM(C$136:C138)","v":0}]
[null,"4期終了時",{"$f":"'単位修得状況確認表（専門教育科目）'!M$65","v":0},{"$f":"SUM(C$136:C139)","v":0}]
[null,"5期終了時",{"$f":"'単位修得状況確認表（専門教育科目）'!O$65","v":0},{"$f":"SUM(C$136:C140)","v":0}]
[null,"6期終了時",{"$f":"'単位修得状況確認表（専門教育科目）'!Q$65","v":0},{"$f":"SUM(C$136:C141)","v":0}]
[null,"7期終了時",{"$f":"'単位修得状況確認表（専門教育科目）'!S$65","v":0},{"$f":"SUM(C$136:C142)","v":0}]
[null,"8期終了時",{"$f":"'単位修得状況確認表（専門教育科目）'!U$65","v":0},{"$f":"SUM(C$136:C143)","v":0}]
[null,"9期終了時",{"$f":"'単位修得状況確認表（専門教育科目）'!W$65","v":0},{"$f":"IF(SUM($C205:$C$212)=0,\"\",SUM(C$136:C144))","v":""}]
[null,"10期終了時",{"$f":"'単位修得状況確認表（専門教育科目）'!Y$65","v":0},{"$f":"IF(SUM($C206:$C$212)=0,\"\",SUM(C$136:C145))","v":""}]
[null,"11期終了時",{"$f":"'単位修得状況確認表（専門教育科目）'!AA$65","v":0},{"$f":"IF(SUM($C207:$C$212)=0,\"\",SUM(C$136:C146))","v":""}]
[null,"12期終了時",{"$f":"'単位修得状況確認表（専門教育科目）'!AC$65","v":0},{"$f":"IF(SUM($C208:$C$212)=0,\"\",SUM(C$136:C147))","v":""}]
[null,"13期終了時",{"$f":"'単位修得状況確認表（専門教育科目）'!AE$65","v":0},{"$f":"IF(SUM($C209:$C$212)=0,\"\",SUM(C$136:C148))","v":""}]
[null,"14期終了時",{"$f":"'単位修得状況確認表（専門教育科目）'!AG$65","v":0},{"$f":"IF(SUM($C210:$C$212)=0,\"\",SUM(C$136:C149))","v":""}]
[null,"15期終了時",{"$f":"'単位修得状況確認表（専門教育科目）'!AI$65","v":0},{"$f":"IF(SUM($C211:$C$212)=0,\"\",SUM(C$136:C150))","v":""}]
[null,"16期終了時",{"$f":"'単位修得状況確認表（専門教育科目）'!AK$65","v":0},{"$f":"IF(SUM($C212:$C$212)=0,\"\",SUM(C$136:C151))","v":""}]
[]
[]
[]
[]
[]
[]
[]
[]
[]
[]
[]
[]
[]
[]
[]
[]
[]
[null,"専門教育科目（選択科目B群）"]
[]
[null,null,"取得単位数","累積取得単位数"]
[null,"1期終了時",{"$f":"'単位修得状況確認表（専門教育科目）'!G$79","v":0},{"$f":"SUM(C$172:C172)","v":0}]
[null,"2期終了時",{"$f":"'単位修得状況確認表（専門教育科目）'!I$79","v":0},{"$f":"SUM(C$172:C173)","v":0}]
[null,"3期終了時",{"$f":"'単位修得状況確認表（専門教育科目）'!K$79","v":0},{"$f":"SUM(C$172:C174)","v":0}]
[null,"4期終了時",{"$f":"'単位修得状況確認表（専門教育科目）'!M$79","v":0},{"$f":"SUM(C$172:C175)","v":0}]
[null,"5期終了時",{"$f":"'単位修得状況確認表（専門教育科目）'!O$79","v":0},{"$f":"SUM(C$172:C176)","v":0}]
[null,"6期終了時",{"$f":"'単位修得状況確認表（専門教育科目）'!Q$79","v":0},{"$f":"SUM(C$172:C177)","v":0}]
[null,"7期終了時",{"$f":"'単位修得状況確認表（専門教育科目）'!S$79","v":0},{"$f":"SUM(C$172:C178)","v":0}]
[null,"8期終了時",{"$f":"'単位修得状況確認表（専門教育科目）'!U$79","v":0},{"$f":"SUM(C$172:C179)","v":0}]
[null,"9期終了時",{"$f":"'単位修得状況確認表（専門教育科目）'!W$79","v":0},{"$f":"IF(SUM($C205:$C$212)=0,\"\",SUM(C$172:C180))","v":""}]
[null,"10期終了時",{"$f":"'単位修得状況確認表（専門教育科目）'!Y$79","v":0},{"$f":"IF(SUM($C206:$C$212)=0,\"\",SUM(C$172:C181))","v":""}]
[null,"11期終了時",{"$f":"'単位修得状況確認表（専門教育科目）'!AA$79","v":0},{"$f":"IF(SUM($C207:$C$212)=0,\"\",SUM(C$172:C182))","v":""}]
[null,"12期終了時",{"$f":"'単位修得状況確認表（専門教育科目）'!AC$79","v":0},{"$f":"IF(SUM($C208:$C$212)=0,\"\",SUM(C$172:C183))","v":""}]
[null,"13期終了時",{"$f":"'単位修得状況確認表（専門教育科目）'!AE$79","v":0},{"$f":"IF(SUM($C209:$C$212)=0,\"\",SUM(C$172:C184))","v":""}]
[null,"14期終了時",{"$f":"'単位修得状況確認表（専門教育科目）'!AG$79","v":0},{"$f":"IF(SUM($C210:$C$212)=0,\"\",SUM(C$172:C185))","v":""}]
[null,"15期終了時",{"$f":"'単位修得状況確認表（専門教育科目）'!AI$79","v":0},{"$f":"IF(SUM($C211:$C$212)=0,\"\",SUM(C$172:C186))","v":""}]
[null,"16期終了時",{"$f":"'単位修得状況確認表（専門教育科目）'!AK$79","v":0},{"$f":"IF(SUM($C212:$C$212)=0,\"\",SUM(C$172:C187))","v":""}]
[]
[]
[]
[]
[]
[]
[null,"累積単位数"]
[]
[null,null,"取得単位数","累積取得単位数"]
[null,"1期終了時",{"$f":"SUM(C6,E6,C45,E45,C84,C110,C136,C172)","v":0},{"$f":"SUM(C$197:C197)","v":0}]
[null,"2期終了時",0,{"$f":"SUM(C$197:C198)","v":0}]
[null,"3期終了時",0,{"$f":"SUM(C$197:C199)","v":0}]
[null,"4期終了時",0,{"$f":"SUM(C$197:C200)","v":0}]
[null,"5期終了時",0,{"$f":"SUM(C$197:C201)","v":0}]
[null,"6期終了時",0,{"$f":"SUM(C$197:C202)","v":0}]
[null,"7期終了時",0,{"$f":"SUM(C$197:C203)","v":0}]
[null,"8期終了時",0,{"$f":"SUM(C$197:C204)","v":0}]
[null,"9期終了時",0,{"$f":"IF(SUM($C205:$C$212)=0,\"\",SUM(C$197:C205))","v":""}]
[null,"10期終了時",0,{"$f":"IF(SUM($C206:$C$212)=0,\"\",SUM(C$197:C206))","v":""}]
[null,"11期終了時",0,{"$f":"IF(SUM($C207:$C$212)=0,\"\",SUM(C$197:C207))","v":""}]
[null,"12期終了時",0,{"$f":"IF(SUM($C208:$C$212)=0,\"\",SUM(C$197:C208))","v":""}]
[null,"13期終了時",0,{"$f":"IF(SUM($C209:$C$212)=0,\"\",SUM(C$197:C209))","v":""}]
[null,"14期終了時",0,{"$f":"IF(SUM($C210:$C$212)=0,\"\",SUM(C$197:C210))","v":""}]
[null,"15期終了時",0,{"$f":"IF(SUM($C211:$C$212)=0,\"\",SUM(C$197:C211))","v":""}]
[null,"16期終了時",0,{"$f":"IF(SUM($C212:$C$212)=0,\"\",SUM(C$197:C212))","v":""}]
[]
[]
[]
[]
[]
[]
[]
[]
[]
[]
[]
[]
[]
[]
[]
[]
[null,"GPA"]
[]
[null,null,"累積GP","累積GPA","GPA累積単位数","累積P","累積F"]
[null,"1期終了時",{"$f":"'単位修得状況確認表（共通教育科目，一般学生）'!I$23+'単位修得状況確認表（専門教育科目）'!H$81","v":0},{"$f":"IF(E232=0,\"\",C232/E232)","v":""},{"$f":"D197-F232+G232","v":0},{"$f":"SUM('単位修得状況確認表（共通教育科目，一般学生）'!H$26,'単位修得状況確認表（専門教育科目）'!G85)","v":0},{"$f":"SUM('単位修得状況確認表（共通教育科目，一般学生）'!H$27,'単位修得状況確認表（専門教育科目）'!G$86)-SUM('単位修得状況確認表（共通教育科目，一般学生）'!H$28,'単位修得状況確認表（専門教育科目）'!G$87)","v":0}]
[null,"2期終了時",{"$f":"C232+'単位修得状況確認表（共通教育科目，一般学生）'!K$23+'単位修得状況確認表（専門教育科目）'!J$81","v":0},{"$f":"IF(E233=0,\"\",C233/E233)","v":""},0,{"$f":"SUM(F232,'単位修得状況確認表（共通教育科目，一般学生）'!J$26,'単位修得状況確認表（専門教育科目）'!I85)","v":0},{"$f":"SUM(G232,'単位修得状況確認表（共通教育科目，一般学生）'!J$27,'単位修得状況確認表（専門教育科目）'!I$86)-SUM('単位修得状況確認表（共通教育科目，一般学生）'!J$28,'単位修得状況確認表（専門教育科目）'!I$87)","v":0}]
[null,"3期終了時",{"$f":"C233+'単位修得状況確認表（共通教育科目，一般学生）'!M$23+'単位修得状況確認表（専門教育科目）'!L$81","v":0},{"$f":"IF(E234=0,\"\",C234/E234)","v":""},0,{"$f":"SUM(F233,'単位修得状況確認表（共通教育科目，一般学生）'!L$26,'単位修得状況確認表（専門教育科目）'!K85)","v":0},{"$f":"SUM(G233,'単位修得状況確認表（共通教育科目，一般学生）'!L$27,'単位修得状況確認表（専門教育科目）'!K$86)-SUM('単位修得状況確認表（共通教育科目，一般学生）'!L$28,'単位修得状況確認表（専門教育科目）'!K$87)","v":0}]
[null,"4期終了時",{"$f":"C234+'単位修得状況確認表（共通教育科目，一般学生）'!O$23+'単位修得状況確認表（専門教育科目）'!N$81","v":0},{"$f":"IF(E235=0,\"\",C235/E235)","v":""},0,{"$f":"SUM(F234,'単位修得状況確認表（共通教育科目，一般学生）'!N$26,'単位修得状況確認表（専門教育科目）'!M85)","v":0},{"$f":"SUM(G234,'単位修得状況確認表（共通教育科目，一般学生）'!N$27,'単位修得状況確認表（専門教育科目）'!M$86)-SUM('単位修得状況確認表（共通教育科目，一般学生）'!N$28,'単位修得状況確認表（専門教育科目）'!M$87)","v":0}]
[null,"5期終了時",{"$f":"C235+'単位修得状況確認表（共通教育科目，一般学生）'!Q$23+'単位修得状況確認表（専門教育科目）'!P$81","v":0},{"$f":"IF(E236=0,\"\",C236/E236)","v":""},0,{"$f":"SUM(F235,'単位修得状況確認表（共通教育科目，一般学生）'!P$26,'単位修得状況確認表（専門教育科目）'!O85)","v":0},{"$f":"SUM(G235,'単位修得状況確認表（共通教育科目，一般学生）'!P$27,'単位修得状況確認表（専門教育科目）'!O$86)-SUM('単位修得状況確認表（共通教育科目，一般学生）'!P$28,'単位修得状況確認表（専門教育科目）'!O$87)","v":0}]
[null,"6期終了時",{"$f":"C236+'単位修得状況確認表（共通教育科目，一般学生）'!S$23+'単位修得状況確認表（専門教育科目）'!R$81","v":0},{"$f":"IF(E237=0,\"\",C237/E237)","v":""},0,{"$f":"SUM(F236,'単位修得状況確認表（共通教育科目，一般学生）'!R$26,'単位修得状況確認表（専門教育科目）'!Q85)","v":0},{"$f":"SUM(G236,'単位修得状況確認表（共通教育科目，一般学生）'!R$27,'単位修得状況確認表（専門教育科目）'!Q$86)-SUM('単位修得状況確認表（共通教育科目，一般学生）'!R$28,'単位修得状況確認表（専門教育科目）'!Q$87)","v":0}]
[null,"7期終了時",{"$f":"C237+'単位修得状況確認表（共通教育科目，一般学生）'!U$23+'単位修得状況確認表（専門教育科目）'!T$81","v":0},"",0,{"$f":"SUM(F237,'単位修得状況確認表（共通教育科目，一般学生）'!T$26,'単位修得状況確認表（専門教育科目）'!S85)","v":0},{"$f":"SUM(G237,'単位修得状況確認表（共通教育科目，一般学生）'!T$27,'単位修得状況確認表（専門教育科目）'!S$86)-SUM('単位修得状況確認表（共通教育科目，一般学生）'!T$28,'単位修得状況確認表（専門教育科目）'!S$87)","v":0}]
[null,"8期終了時",{"$f":"C238+'単位修得状況確認表（共通教育科目，一般学生）'!W$23+'単位修得状況確認表（専門教育科目）'!V$81","v":0},"",0,{"$f":"SUM(F238,'単位修得状況確認表（共通教育科目，一般学生）'!V$26,'単位修得状況確認表（専門教育科目）'!U85)","v":0},{"$f":"SUM(G238,'単位修得状況確認表（共通教育科目，一般学生）'!V$27,'単位修得状況確認表（専門教育科目）'!U$86)-SUM('単位修得状況確認表（共通教育科目，一般学生）'!V$28,'単位修得状況確認表（専門教育科目）'!U$87)","v":0}]
[null,"9期終了時",{"$f":"C239+'単位修得状況確認表（共通教育科目，一般学生）'!Y$23+'単位修得状況確認表（専門教育科目）'!X$81","v":0},{"$f":"IF(OR(E240=0,E240=\"\"),\"\",C240/E240)","v":""},{"$f":"IF(D205=\"\",\"\",D205-F240+G240)","v":""},{"$f":"SUM(F239,'単位修得状況確認表（共通教育科目，一般学生）'!X$26,'単位修得状況確認表（専門教育科目）'!W85)","v":0},{"$f":"SUM(G239,'単位修得状況確認表（共通教育科目，一般学生）'!X$27,'単位修得状況確認表（専門教育科目）'!W$86)-SUM('単位修得状況確認表（共通教育科目，一般学生）'!X$28,'単位修得状況確認表（専門教育科目）'!W$87)","v":0}]
[null,"10期終了時",{"$f":"C240+'単位修得状況確認表（共通教育科目，一般学生）'!AA$23+'単位修得状況確認表（専門教育科目）'!Z$81","v":0},{"$f":"IF(OR(E241=0,E241=\"\"),\"\",C241/E241)","v":""},{"$f":"IF(D206=\"\",\"\",D206-F241+G241)","v":""},{"$f":"SUM(F240,'単位修得状況確認表（共通教育科目，一般学生）'!Z$26,'単位修得状況確認表（専門教育科目）'!Y85)","v":0},{"$f":"SUM(G240,'単位修得状況確認表（共通教育科目，一般学生）'!Z$27,'単位修得状況確認表（専門教育科目）'!Y$86)-SUM('単位修得状況確認表（共通教育科目，一般学生）'!Z$28,'単位修得状況確認表（専門教育科目）'!Y$87)","v":0}]
[null,"11期終了時",{"$f":"C241+'単位修得状況確認表（共通教育科目，一般学生）'!AC$23+'単位修得状況確認表（専門教育科目）'!AB$81","v":0},"","",{"$f":"SUM(F241,'単位修得状況確認表（共通教育科目，一般学生）'!AB$26,'単位修得状況確認表（専門教育科目）'!AA85)","v":0},{"$f":"SUM(G241,'単位修得状況確認表（共通教育科目，一般学生）'!AB$27,'単位修得状況確認表（専門教育科目）'!AA$86)-SUM('単位修得状況確認表（共通教育科目，一般学生）'!AB$28,'単位修得状況確認表（専門教育科目）'!AA$87)","v":0}]
[null,"12期終了時",{"$f":"C242+'単位修得状況確認表（共通教育科目，一般学生）'!AE$23+'単位修得状況確認表（専門教育科目）'!AD$81","v":0},"","",{"$f":"SUM(F242,'単位修得状況確認表（共通教育科目，一般学生）'!AD$26,'単位修得状況確認表（専門教育科目）'!AC85)","v":0},{"$f":"SUM(G242,'単位修得状況確認表（共通教育科目，一般学生）'!AD$27,'単位修得状況確認表（専門教育科目）'!AC$86)-SUM('単位修得状況確認表（共通教育科目，一般学生）'!AD$28,'単位修得状況確認表（専門教育科目）'!AC$87)","v":0}]
[null,"13期終了時",{"$f":"C243+'単位修得状況確認表（共通教育科目，一般学生）'!AG$23+'単位修得状況確認表（専門教育科目）'!AF$81","v":0},"","",{"$f":"SUM(F243,'単位修得状況確認表（共通教育科目，一般学生）'!AF$26,'単位修得状況確認表（専門教育科目）'!AE85)","v":0},{"$f":"SUM(G243,'単位修得状況確認表（共通教育科目，一般学生）'!AF$27,'単位修得状況確認表（専門教育科目）'!AE$86)-SUM('単位修得状況確認表（共通教育科目，一般学生）'!AF$28,'単位修得状況確認表（専門教育科目）'!AE$87)","v":0}]
[null,"14期終了時",{"$f":"C244+'単位修得状況確認表（共通教育科目，一般学生）'!AI$23+'単位修得状況確認表（専門教育科目）'!AH$81","v":0},"","",{"$f":"SUM(F244,'単位修得状況確認表（共通教育科目，一般学生）'!AH$26,'単位修得状況確認表（専門教育科目）'!AG85)","v":0},{"$f":"SUM(G244,'単位修得状況確認表（共通教育科目，一般学生）'!AH$27,'単位修得状況確認表（専門教育科目）'!AG$86)-SUM('単位修得状況確認表（共通教育科目，一般学生）'!AH$28,'単位修得状況確認表（専門教育科目）'!AG$87)","v":0}]
[null,"15期終了時",{"$f":"C245+'単位修得状況確認表（共通教育科目，一般学生）'!AK$23+'単位修得状況確認表（専門教育科目）'!AJ$81","v":0},"","",{"$f":"SUM(F245,'単位修得状況確認表（共通教育科目，一般学生）'!AJ$26,'単位修得状況確認表（専門教育科目）'!AI85)","v":0},{"$f":"SUM(G245,'単位修得状況確認表（共通教育科目，一般学生）'!AJ$27,'単位修得状況確認表（専門教育科目）'!AI$86)-SUM('単位修得状況確認表（共通教育科目，一般学生）'!AJ$28,'単位修得状況確認表（専門教育科目）'!AI$87)","v":0}]
[null,"16期終了時",{"$f":"C246+'単位修得状況確認表（共通教育科目，一般学生）'!AM$23+'単位修得状況確認表（専門教育科目）'!AL$81","v":0},"","",{"$f":"SUM(F246,'単位修得状況確認表（共通教育科目，一般学生）'!AL$26,'単位修得状況確認表（専門教育科目）'!AK85)","v":0},{"$f":"SUM(G246,'単位修得状況確認表（共通教育科目，一般学生）'!AL$27,'単位修得状況確認表（専門教育科目）'!AK$86)-SUM('単位修得状況確認表（共通教育科目，一般学生）'!AL$28,'単位修得状況確認表（専門教育科目）'!AK$87)","v":0}]